[Event "90th GER-ch 2019"]
[Site "Magdeburg"]
[Date "2019.05.29"]
[Round "5.10"]
[White "Moeller, Dustin"]
[Black "Svane, Frederik"]
[Result "0-1"]
[ECO "E97"]
[WhiteElo "2156"]
[BlackElo "2342"]
[Annotator "RC"]
[PlyCount "100"]
[EventDate "2019.05.26"]
[EventType "tourn"]
[EventCountry "GER"]
[SourceTitle "playchess.com"]
[Source "ChessBase"]
[SourceQuality "1"]
[TimeControl "40/5400+30:1800+30"]

1. d4 {[%emt 0:00:00]} Nf6 {[%emt 0:00:00]} 2. c4 {[%emt 0:00:00]} g6 {[%emt 0:00:00]} 3. Nc3 {[%emt 0:00:00]} Bg7 {[%emt 0:00:01]} 4. e4 {[%emt 0:00:00]} d6 {[%emt 0:00:06]} 5. Be2 {[%emt 0:00:00]} O-O {[%emt 0:00:18]} 6. Nf3 {[%emt 0:00:00]} e5 {[%emt 0:00:10]} 7. O-O {[%emt 0:00:06]} Nc6 {[%emt 0:00:12]} 8. d5 {[%emt 0:00:05]} Ne7 {[%emt 0:00:10]} 9. Nd2 {[%emt 0:00:05]} a5 {[%emt 0:00:17]} 10. a3 {[%emt 0:00:11]} Nd7 {[%emt 0:00:41]} 11. Rb1 {[%emt 0:00:16]} f5 {[%emt 0:00:09]} 12. b4 {[%emt 0:01:11]} Nf6 {[%emt 0:01:27]} 13. f3 {[%emt 0:01:05]} axb4 {[%emt 0:08:51]} 14. axb4 {[%emt 0:00:02]} c6 {[%emt 0:01:13]} 15. Kh1 {[%emt 0:01:23]} h5 {[%emt 0:33:08]} 16. Nb3 {[%emt 0:08:46]} cxd5 {[%emt 0:02:06]} 17. cxd5 {[%emt 0:01:35]} f4 {[%emt 0:07:40]} 18. Bd2 {[%emt 0:01:46]} g5 {[%emt 0:00:54]} 19. Rc1 {[%emt 0:02:32]} Rf7 {[%emt 0:04:19]} 20. Nb5 {[%emt 0:01:54]} Ng6 {[%emt 0:00:22]} 21. Qc2 {[%emt 0:00:26]} Ne8 {[%emt 0:02:32]} 22. Ra1 {[%emt 0:11:30]} Rb8 {[%emt 0:05:10]} 23. Be1 {[%emt 0:05:00]} g4 {[%emt 0:03:56]} 24. Rg1 {[%emt 0:13:23]} Bh6 {[%emt 0:07:44]} 25. Na7 {[%emt 0:10:20]} Bd7 {[%emt 0:01:12]} 26. Bb5 {[%emt 0:00:36]} Rg7 {[%emt 0:00:22]} 27. Bxd7 {[%emt 0:02:21]} Qxd7 {[%emt 0:00:06]} 28. Qe2 {[%emt 0:03:15]} Nc7 {[%emt 0:04:12]} 29. Ra5 {[%emt 0:04:32]} Bg5 {[%emt 0:01:57]} 30. Nb5 {[%emt 0:05:04]} Ne8 {[%emt 0:05:02]} 31. Na7 {[%emt 0:10:28]} Bd8 {[%emt 0:00:42]} 32. Ra3 {[%emt 0:02:05]} Ra8 {[%emt 0:07:44]} 33. Nb5 {[%emt 0:00:20]} Rb8 {[%emt 0:00:10]} 34. Na7 {[%emt 0:01:06]} Ra8 {[%emt 0:00:21]} 35. Nb5 {[%emt 0:00:02]} Rxa3 {[%emt 0:01:06]} 36. Nxa3 {[%emt 0:00:02]} Nf6 {[%emt 0:02:17]} 37. Qb5 {[%emt 0:01:26]} Qe7 {[%emt 0:00:42]} 38. Na5 {[%emt 0:02:52]} Nh7 {[%emt 0:01:03]} 39. Nxb7 {[%emt 0:00:49]} Qxb7 {[%emt 0:00:23]} 40. Qe8+ {[%emt 0:00:05]} Ngf8 {[%emt 0:00:05]} 41. Qxd8 {[%emt 0:30:09]} gxf3 {[%emt 0:30:07]} 42. Qh4 {[%emt 0:04:41]} Qa6 {[%emt 0:00:00]} 43. gxf3 {[%emt 0:03:01]} Qxa3 {[%emt 0:00:00]} 44. Rxg7+ {[%emt 0:01:24]} Kxg7 {[%emt 0:00:00]} 45. Qxh5 {[%emt 0:01:19]} Qc1 {[%emt 0:00:00]} 46. Qg4+ {[%emt 0:00:52]} Ng6 {[%emt 0:00:00]} 47. Qg1 {[%emt 0:00:42]} Ng5 {[%emt 0:00:00]} 48. Bf2 {[%emt 0:00:20]} Qc2 {[%emt 0:00:00]} 49. h4 {[%emt 0:01:07]} Nxf3 {[%emt 0:00:00]} 50. Qg2 {[%emt 0:02:36]} Qd1+ {[%emt 0:00:00]} 0-1

[Event "90th GER-ch 2019"]
[Site "Magdeburg"]
[Date "2019.05.29"]
[Round "5.14"]
[White "Adiyaman, Rene"]
[Black "Nosek, Reinhard"]
[Result "1/2-1/2"]
[ECO "B22"]
[WhiteElo "2175"]
[BlackElo "1913"]
[Annotator "ChessBase"]
[PlyCount "126"]
[EventDate "2019.05.26"]
[EventType "tourn"]
[EventCountry "GER"]
[SourceTitle "playchess.com"]
[Source "ChessBase"]
[SourceQuality "1"]
[TimeControl "40/5400+30:1800+30"]

1. e4 c5 2. c3 e6 3. d4 Qc7 4. Nf3 Be7 5. Bd3 d6 6. O-O Nd7 7. Qe2 Ngf6 8. Rd1 b6 9. Nbd2 Bb7 10. a3 a5 11. Bb5 O-O 12. e5 Nd5 13. Nc4 Bc6 14. Bxc6 Qxc6 15. Qe4 Qa4 16. Qd3 dxe5 17. Ncxe5 cxd4 18. Nxd7 Qxd7 19. c4 Nf6 20. Bf4 Rfd8 21. Rd2 Nh5 22. Be3 Bf6 23. Qe4 Qc7 24. Bxd4 Qf4 25. Qxf4 Nxf4 26. Bxb6 Rxd2 27. Nxd2 Bxb2 28. Ra2 Bc3 29. Ne4 Be5 30. g3 Ng6 31. Rd2 Kf8 32. c5 Ne7 33. Rd7 Ke8 34. Rb7 Nc6 35. Nd6+ Bxd6 36. cxd6 Ne5 37. Rc7 a4 38. Re7+ Kf8 39. f4 Rb8 40. Rc7 Ke8 41. Re7+ Kf8 42. fxe5 Rxb6 43. Ra7 Ke8 44. Rxa4 Rb7 45. Kg2 f6 46. Kf3 Kd7 47. Rb4 Ra7 48. Ke4 fxe5 49. a4 Kxd6 50. Rb6+ Ke7 51. Kxe5 Rxa4 52. Rb7+ Kf8 53. Kxe6 Re4+ 54. Kf5 Re7 55. Rb8+ Kf7 56. g4 Ra7 57. Rb5 h6 58. h4 g6+ 59. Ke5 Kg7 60. Rb6 Re7+ 61. Re6 Ra7 62. Rd6 Rf7 63. Re6 Ra7 1/2-1/2

[Event "90th GER-ch 2019"]
[Site "Magdeburg"]
[Date "2019.05.29"]
[Round "5.15"]
[White "Bastian, Herbert"]
[Black "Schulz, Lukas"]
[Result "0-1"]
[ECO "B24"]
[WhiteElo "2297"]
[BlackElo "2302"]
[Annotator "ChessBase"]
[PlyCount "64"]
[EventDate "2019.05.26"]
[EventType "tourn"]
[EventCountry "GER"]
[SourceTitle "playchess.com"]
[Source "ChessBase"]
[SourceQuality "1"]
[TimeControl "40/5400+30:1800+30"]

1. e4 {[%emt 0:00:00]} c5 {[%emt 0:00:00]} 2. Nc3 {[%emt 0:00:00]} Nc6 {[%emt 0:00:00]} 3. g3 {[%emt 0:00:03]} d6 {[%emt 0:00:23]} 4. Bg2 {[%emt 0:00:27]} e5 {[%emt 0:00:43]} 5. d3 {[%emt 0:01:00]} Be7 {[%emt 0:01:21]} 6. Nd5 {[%emt 0:07:37]} Nf6 {[%emt 0:05:16]} 7. Nxe7 {[%emt 0:00:37]} Qxe7 {[%emt 0:00:25]} 8. Ne2 {[%emt 0:01:41]} Bg4 {[%emt 0:07:35]} 9. f3 {[%emt 0:05:34]} Bh5 {[%emt 0:04:10]} 10. c4 {[%emt 0:13:47]} O-O {[%emt 0:07:35]} 11. O-O {[%emt 0:00:25]} Ne8 {[%emt 0:05:35]} 12. Bd2 {[%emt 0:05:45]} Nc7 {[%emt 0:00:58]} 13. Nc3 {[%emt 0:01:43]} Bg6 {[%emt 0:07:42]} 14. a3 {[%emt 0:10:59]} f5 {[%emt 0:03:50]} 15. Rb1 {[%emt 0:08:01]} f4 {[%emt 0:12:33]} 16. b4 {[%emt 0:02:23]} b6 {[%emt 0:02:48]} 17. bxc5 {[%emt 0:08:08]} dxc5 {[%emt 0:00:25]} 18. Nd5 {[%emt 0:00:46]} Nxd5 {[%emt 0:03:15]} 19. cxd5 {[%emt 0:00:07]} Nd4 {[%emt 0:00:36]} 20. gxf4 {[%emt 0:00:26]} exf4 {[%emt 0:01:20]} 21. Bc3 {[%emt 0:00:11]} Qe5 {[%emt 0:05:38]} 22. Qd2 {[%emt 0:01:00]} Be8 {[%emt 0:02:49]} 23. Rf2 {[%emt 0:01:21]} Bd7 {[%emt 0:01:20]} 24. Qb2 {[%emt 0:00:54]} Rac8 {[%emt 0:05:40]} 25. Kh1 {[%emt 0:03:12]} g5 {[%emt 0:01:10]} 26. Rg1 {[%emt 0:00:18]} h5 {[%emt 0:02:59]} 27. Bf1 {[%emt 0:05:50]} Kf7 {[%emt 0:01:43]} 28. Be2 {[%emt 0:05:16]} Rg8 {[%emt 0:01:09]} 29. Bd1 {[%emt 0:00:15]} Ke7 {[%emt 0:03:30]} 30. a4 {[%emt 0:06:38]} g4 {[%emt 0:01:24]} 31. Rfg2 {[%emt 0:05:45]} g3 {[%emt 0:02:57]} 32. Re1 {[%emt 0:02:38]} h4 {[%emt 0:02:18]} 0-1

[Event "90th GER-ch 2019"]
[Site "Magdeburg"]
[Date "2019.05.29"]
[Round "5.16"]
[White "Guenther, Andreas"]
[Black "Dauth, Benjamin"]
[Result "0-1"]
[ECO "D05"]
[WhiteElo "2121"]
[BlackElo "2295"]
[Annotator "ChessBase"]
[PlyCount "126"]
[EventDate "2019.05.26"]
[EventType "tourn"]
[EventCountry "GER"]
[SourceTitle "playchess.com"]
[Source "ChessBase"]
[SourceQuality "1"]
[TimeControl "40/5400+30:1800+30"]

1. d4 {[%emt 0:00:00]} d5 {[%emt 0:00:00]} 2. Nf3 {[%emt 0:00:00]} Nf6 {[%emt 0:00:03]} 3. e3 {[%emt 0:00:04]} e6 {[%emt 0:00:46]} 4. Bd3 {[%emt 0:00:33]} Bd6 {[%emt 0:00:07]} 5. O-O {[%emt 0:00:09]} O-O {[%emt 0:00:12]} 6. b3 {[%emt 0:01:25]} Qe7 {[%emt 0:02:22]} 7. Bb2 {[%emt 0:00:38]} Nbd7 {[%emt 0:00:36]} 8. Ne5 {[%emt 0:02:31]} Ne8 {[%emt 0:06:12]} 9. f4 {[%emt 0:05:09]} g6 {[%emt 0:02:29]} 10. Nd2 {[%emt 0:01:46]} Ng7 {[%emt 0:03:20]} 11. e4 {[%emt 0:05:41]} f6 {[%emt 0:11:16]} 12. Nxd7 {[%emt 0:01:36]} Bxd7 {[%emt 0:00:52]} 13. e5 {[%emt 0:04:57]} Ba3 {[%emt 0:03:41]} 14. Bxa3 {[%emt 0:03:56]} Qxa3 {[%emt 0:00:07]} 15. Nf3 {[%emt 0:01:22]} c5 {[%emt 0:03:22]} 16. c3 {[%emt 0:11:55]} Rac8 {[%emt 0:01:45]} 17. exf6 {[%emt 0:06:10]} Rxf6 {[%emt 0:01:59]} 18. Ne5 {[%emt 0:06:40]} Be8 {[%emt 0:00:32]} 19. Qd2 {[%emt 0:07:42]} Qa5 {[%emt 0:08:51]} 20. b4 {[%emt 0:04:29]} cxb4 {[%emt 0:00:37]} 21. cxb4 {[%emt 0:00:02]} Qb6 {[%emt 0:00:56]} 22. Qb2 {[%emt 0:00:23]} Bb5 {[%emt 0:01:00]} 23. Bxb5 {[%emt 0:02:36]} Qxb5 {[%emt 0:00:36]} 24. a4 {[%emt 0:00:42]} Qe8 {[%emt 0:00:55]} 25. Rac1 {[%emt 0:02:04]} Rd8 {[%emt 0:13:44]} 26. Rc7 {[%emt 0:03:42]} Qxa4 {[%emt 0:03:36]} 27. Rxb7 {[%emt 0:01:03]} Qa6 {[%emt 0:00:32]} 28. Rc7 {[%emt 0:01:13]} Ne8 {[%emt 0:01:42]} 29. Rc6 {[%emt 0:03:43]} Qb7 {[%emt 0:00:33]} 30. g3 {[%emt 0:03:18]} Nd6 {[%emt 0:02:18]} 31. Qa3 {[%emt 0:12:32]} Rf7 {[%emt 0:05:20]} 32. Nxf7 {[%emt 0:01:31]} Kxf7 {[%emt 0:00:57]} 33. Qa6 {[%emt 0:01:33]} Qxb4 {[%emt 0:01:25]} 34. Qxa7+ {[%emt 0:00:09]} Kf8 {[%emt 0:00:30]} 35. Qc5 {[%emt 0:00:10]} Qb8 {[%emt 0:00:49]} 36. Ra1 {[%emt 0:01:06]} Qb2 {[%emt 0:01:16]} 37. Qc3 {[%emt 0:01:17]} Qe2 {[%emt 0:00:06]} 38. Re1 {[%emt 0:00:14]} Qg4 {[%emt 0:00:05]} 39. Qc5 {[%emt 0:01:31]} Ke7 {[%emt 0:00:03]} 40. Qa7+ {[%emt 0:00:36]} Kf6 {[%emt 0:00:50]} 41. Qb6 {[%emt 0:31:37]} Nf7 {[%emt 0:30:28]} 42. Rcxe6+ {[%emt 0:00:32]} Kg7 {[%emt 0:00:07]} 43. Re7 {[%emt 0:01:14]} Rd7 {[%emt 0:00:09]} 44. Qe6 {[%emt 0:00:00]} Rxe7 {[%emt 0:00:00]} 45. Qxe7 {[%emt 0:00:00]} Qf3 {[%emt 0:00:00]} 46. Qe3 {[%emt 0:00:00]} Qg4 {[%emt 0:00:00]} 47. Rc1 {[%emt 0:00:00]} h5 {[%emt 0:00:00]} 48. Kg2 {[%emt 0:00:00]} h4 {[%emt 0:00:00]} 49. h3 {[%emt 0:00:00]} Qf5 {[%emt 0:00:00]} 50. g4 {[%emt 0:00:00]} Qd7 {[%emt 0:00:00]} 51. Re1 {[%emt 0:00:00]} Qc7 {[%emt 0:00:00]} 52. Re2 {[%emt 0:00:00]} Qc4 {[%emt 0:00:00]} 53. Rf2 {[%emt 0:00:00]} Qc7 {[%emt 0:00:00]} 54. Qe6 {[%emt 0:00:00]} Qc3 {[%emt 0:00:00]} 55. Qxd5 {[%emt 0:00:00]} Qg3+ {[%emt 0:00:00]} 56. Kf1 {[%emt 0:00:00]} Qxh3+ {[%emt 0:00:00]} 57. Qg2 {[%emt 0:00:00]} Qd3+ {[%emt 0:00:00]} 58. Kg1 {[%emt 0:00:00]} Qxd4 {[%emt 0:00:00]} 59. Kh2 {[%emt 0:00:00]} Nh6 {[%emt 0:00:00]} 60. Qf3 {[%emt 0:00:00]} Qxf2+ {[%emt 0:00:00]} 61. Qxf2 {[%emt 0:00:00]} Nxg4+ {[%emt 0:00:00]} 62. Kg2 {[%emt 0:00:00]} Nxf2 {[%emt 0:00:00]} 63. Kxf2 {[%emt 0:00:00]} Kf6 {[%emt 0:00:00]} 0-1

[Event "90th GER-ch 2019"]
[Site "Magdeburg"]
[Date "2019.05.30"]
[Round "6.3"]
[White "Roseneck, Jonas"]
[Black "Krassowizkij, Jaroslaw"]
[Result "1-0"]
[ECO "C07"]
[WhiteElo "2403"]
[BlackElo "2450"]
[Annotator "ChessBase"]
[PlyCount "47"]
[EventDate "2019.05.26"]
[EventType "tourn"]
[EventCountry "GER"]
[SourceTitle "playchess.com"]
[Source "ChessBase"]
[SourceQuality "1"]
[TimeControl "40/5400+30:1800+30"]

1. e4 {[%emt 0:00:00]} e6 {[%emt 0:00:00]} 2. d4 {[%emt 0:00:00]} d5 {[%emt 0:00:00]} 3. Nd2 {[%emt 0:00:00]} c5 {[%emt 0:00:00]} 4. exd5 {[%emt 0:00:00]} Qxd5 {[%emt 0:00:00]} 5. Ngf3 {[%emt 0:00:00]} cxd4 {[%emt 0:00:00]} 6. Bc4 {[%emt 0:00:00]} Qd7 {[%emt 0:00:00]} 7. O-O {[%emt 0:00:30]} Nc6 {[%emt 0:00:04]} 8. Qe2 {[%emt 0:00:53]} a6 {[%emt 0:00:58]} 9. a4 {[%emt 0:00:03]} Nf6 {[%emt 0:00:28]} 10. Nb3 {[%emt 0:01:25]} Bd6 {[%emt 0:00:09]} 11. Rd1 {[%emt 0:00:12]} O-O {[%emt 0:00:27]} 12. Nbxd4 {[%emt 0:02:33]} e5 {[%emt 0:00:43]} 13. Nxc6 {[%emt 0:03:34]} Qxc6 {[%emt 0:00:04]} 14. Bg5 {[%emt 0:00:54]} Bc7 {[%emt 0:00:06]} 15. Bxf6 {[%emt 0:00:35]} Qxf6 {[%emt 0:00:04]} 16. Bd5 {[%emt 0:00:04]} g6 {[%emt 0:02:37]} 17. c4 {[%emt 0:23:06]} Re8 {[%emt 0:20:52]} 18. Nd2 {[%emt 0:02:56]} Qe7 {[%emt 0:07:45]} 19. Ne4 {[%emt 0:03:29]} Rb8 {[%emt 0:04:32]} 20. c5 {[%emt 0:26:38]} Be6 {[%emt 0:11:08]} 21. Bxe6 {[%emt 0:01:53]} Qxe6 {[%emt 0:00:10]} 22. Rd7 {[%emt 0:00:19]} Re7 {[%emt 0:02:33]} 23. Rad1 {[%emt 0:01:24]} Rbe8 {[%emt 0:05:05]} 24. R7d6 {[%emt 0:03:12]} 1-0

[Event "90th GER-ch 2019"]
[Site "Magdeburg"]
[Date "2019.05.30"]
[Round "6.4"]
[White "Kvetny, Mark"]
[Black "Winterberg, Lukas"]
[Result "1/2-1/2"]
[ECO "D36"]
[WhiteElo "2414"]
[BlackElo "2376"]
[Annotator "ChessBase"]
[PlyCount "78"]
[EventDate "2019.05.26"]
[EventType "tourn"]
[EventCountry "GER"]
[SourceTitle "playchess.com"]
[Source "ChessBase"]
[SourceQuality "1"]
[TimeControl "40/5400+30:1800+30"]

1. d4 {[%emt 0:00:00]} Nf6 {[%emt 0:00:00]} 2. c4 {[%emt 0:00:00]} e6 {[%emt 0:00:27]} 3. Nc3 {[%emt 0:00:00]} d5 {[%emt 0:00:24]} 4. cxd5 {[%emt 0:00:02]} exd5 {[%emt 0:00:14]} 5. Bg5 {[%emt 0:00:10]} c6 {[%emt 0:00:22]} 6. Qc2 {[%emt 0:01:55]} Nbd7 {[%emt 0:00:36]} 7. e3 {[%emt 0:00:07]} Be7 {[%emt 0:00:32]} 8. Bd3 {[%emt 0:00:07]} Nh5 {[%emt 0:01:14]} 9. Bxe7 {[%emt 0:10:22]} Qxe7 {[%emt 0:00:04]} 10. O-O-O {[%emt 0:00:38]} g6 {[%emt 0:00:59]} 11. Nf3 {[%emt 0:03:10]} Nb6 {[%emt 0:00:21]} 12. h3 {[%emt 0:01:15]} Ng7 {[%emt 0:01:08]} 13. Kb1 {[%emt 0:05:42]} Bf5 {[%emt 0:00:59]} 14. Ne5 {[%emt 0:01:31]} f6 {[%emt 0:03:31]} 15. Bxf5 {[%emt 0:00:39]} fxe5 {[%emt 0:14:42]} 16. Bg4 {[%emt 0:02:58]} e4 {[%emt 0:02:31]} 17. h4 {[%emt 0:05:19]} Nf5 {[%emt 0:04:04]} 18. Bxf5 {[%emt 0:12:48]} gxf5 {[%emt 0:00:03]} 19. Ne2 {[%emt 0:01:32]} Nd7 {[%emt 0:02:20]} 20. Nf4 {[%emt 0:11:53]} Nf8 {[%emt 0:02:08]} 21. Qe2 {[%emt 0:06:52]} Qf7 {[%emt 0:10:06]} 22. g3 {[%emt 0:04:59]} Ne6 {[%emt 0:00:24]} 23. Nxe6 {[%emt 0:00:53]} Qxe6 {[%emt 0:00:03]} 24. Qh5+ {[%emt 0:03:30]} Qg6 {[%emt 0:00:40]} 25. Qg5 {[%emt 0:00:05]} Kd7 {[%emt 0:06:34]} 26. Rdf1 {[%emt 0:05:45]} Rag8 {[%emt 0:01:20]} 27. Qxg6 {[%emt 0:02:06]} Rxg6 {[%emt 0:11:21]} 28. Rc1 {[%emt 0:00:39]} h5 {[%emt 0:01:35]} 29. Rc3 {[%emt 0:00:29]} Re8 {[%emt 0:00:39]} 30. Re1 {[%emt 0:05:12]} Kd6 {[%emt 0:00:18]} 31. b4 {[%emt 0:01:38]} Rg7 {[%emt 0:02:14]} 32. Kc2 {[%emt 0:03:39]} Rc7 {[%emt 0:00:43]} 33. Rc1 {[%emt 0:00:34]} Ra8 {[%emt 0:03:32]} 34. Ra3 {[%emt 0:04:01]} a6 {[%emt 0:00:51]} 35. Kb2 {[%emt 0:00:43]} b6 {[%emt 0:01:20]} 36. Rb3 {[%emt 0:00:13]} Rb7 {[%emt 0:00:28]} 37. Rbc3 {[%emt 0:01:51]} Rc7 {[%emt 0:00:32]} 38. Rb3 {[%emt 0:00:10]} Rb7 {[%emt 0:03:03]} 39. Rbc3 {[%emt 0:00:12]} Rc7 {[%emt 0:00:09]} 1/2-1/2

[Event "90th GER-ch 2019"]
[Site "Magdeburg"]
[Date "2019.05.30"]
[Round "6.5"]
[White "Pajeken, Jakob Leon"]
[Black "Stern, Rene"]
[Result "0-1"]
[ECO "D05"]
[WhiteElo "2359"]
[BlackElo "2538"]
[Annotator "RC"]
[PlyCount "112"]
[EventDate "2019.05.26"]
[EventType "tourn"]
[EventCountry "GER"]
[SourceTitle "playchess.com"]
[Source "ChessBase"]
[SourceQuality "1"]
[TimeControl "40/5400+30:1800+30"]

1. d4 {[%emt 0:00:00]} d5 {[%emt 0:00:00]} 2. Nf3 {[%emt 0:00:00]} Nf6 {[%emt 0:00:00]} 3. e3 {[%emt 0:00:00]} e6 {[%emt 0:01:21]} 4. Bd3 {[%emt 0:00:00]} b6 {[%emt 0:01:44]} 5. O-O {[%emt 0:00:27]} Bb7 {[%emt 0:00:21]} 6. b3 {[%emt 0:00:31]} Nbd7 {[%emt 0:01:10]} 7. Bb2 {[%emt 0:00:12]} Ne4 {[%emt 0:05:38]} 8. c4 {[%emt 0:00:37]} Bd6 {[%emt 0:02:48]} 9. Nc3 {[%emt 0:06:39]} Nxc3 {[%emt 0:07:59]} 10. Bxc3 {[%emt 0:00:09]} O-O {[%emt 0:05:22]} 11. Rc1 {[%emt 0:03:01]} Qe7 {[%emt 0:06:50]} 12. Qe2 {[%emt 0:11:45]} f5 {[%emt 0:15:12]} 13. Ne5 {[%emt 0:08:04]} Nxe5 {[%emt 0:01:05]} 14. dxe5 {[%emt 0:00:19]} Ba3 {[%emt 0:00:31]} 15. Rc2 {[%emt 0:02:01]} a5 {[%emt 0:12:30]} 16. f4 {[%emt 0:04:51]} Rad8 {[%emt 0:01:15]} 17. cxd5 {[%emt 0:03:05]} Bxd5 {[%emt 0:00:21]} 18. Bd4 {[%emt 0:02:10]} g6 {[%emt 0:08:07]} 19. h3 {[%emt 0:06:53]} Rf7 {[%emt 0:00:06]} 20. Kh2 {[%emt 0:01:10]} Qd7 {[%emt 0:02:02]} 21. Rd1 {[%emt 0:03:04]} Bf8 {[%emt 0:00:51]} 22. Rdd2 {[%emt 0:04:21]} c5 {[%emt 0:00:24]} 23. Bb2 {[%emt 0:00:25]} Qb7 {[%emt 0:00:38]} 24. Ba6 {[%emt 0:03:57]} Qa8 {[%emt 0:00:19]} 25. Bb5 {[%emt 0:00:40]} Be7 {[%emt 0:03:02]} 26. Qf2 {[%emt 0:03:53]} Rff8 {[%emt 0:00:42]} 27. Rc1 {[%emt 0:01:28]} Be4 {[%emt 0:02:39]} 28. Bd7 {[%emt 0:04:25]} Bd5 {[%emt 0:05:21]} 29. Bb5 {[%emt 0:00:28]} Kf7 {[%emt 0:02:40]} 30. Rcd1 {[%emt 0:02:49]} Bc6 {[%emt 0:00:06]} 31. Rxd8 {[%emt 0:08:34]} Rxd8 {[%emt 0:00:08]} 32. Rxd8 {[%emt 0:00:22]} Bxd8 {[%emt 0:00:07]} 33. Bf1 {[%emt 0:00:18]} a4 {[%emt 0:01:58]} 34. Qd2 {[%emt 0:01:27]} Be7 {[%emt 0:00:06]} 35. g4 {[%emt 0:04:00]} axb3 {[%emt 0:02:48]} 36. axb3 {[%emt 0:01:04]} Qa2 {[%emt 0:01:19]} 37. Qc2 {[%emt 0:01:01]} Be4 {[%emt 0:00:46]} 38. Qc3 {[%emt 0:00:11]} Qb1 {[%emt 0:01:44]} 39. Qc1 {[%emt 0:01:37]} Qxc1 {[%emt 0:05:20]} 40. Bxc1 {[%emt 0:00:06]} Bd5 {[%emt 0:00:29]} 41. Bc4 {[%emt 0:30:33]} Ke8 {[%emt 0:30:59]} 42. e4 {[%emt 0:09:23]} fxe4 {[%emt 0:00:00]} 43. Bxd5 {[%emt 0:00:00]} exd5 {[%emt 0:00:00]} 44. Kg3 {[%emt 0:00:00]} d4 {[%emt 0:00:00]} 45. f5 {[%emt 0:00:00]} e3 {[%emt 0:00:00]} 46. f6 {[%emt 0:00:00]} Bd8 {[%emt 0:00:00]} 47. Kf4 {[%emt 0:00:00]} Kf7 {[%emt 0:00:00]} 48. Ke4 {[%emt 0:00:00]} Ke6 {[%emt 0:00:00]} 49. b4 {[%emt 0:00:00]} Bc7 {[%emt 0:00:00]} 50. f7 {[%emt 0:00:00]} Kxf7 {[%emt 0:00:00]} 51. Kd5 {[%emt 0:00:00]} Ke8 {[%emt 0:00:00]} 52. h4 {[%emt 0:00:00]} Kd7 {[%emt 0:00:00]} 53. g5 {[%emt 0:00:00]} cxb4 {[%emt 0:00:00]} 54. e6+ {[%emt 0:00:00]} Ke8 {[%emt 0:00:00]} 55. Kxd4 {[%emt 0:00:00]} e2 {[%emt 0:00:00]} 56. Bd2 {[%emt 0:00:00]} Bg3 {[%emt 0:00:00]} 0-1

[Event "90th GER-ch 2019"]
[Site "Magdeburg"]
[Date "2019.05.30"]
[Round "6.6"]
[White "Svane, Frederik"]
[Black "Rosner, Jonas"]
[Result "1/2-1/2"]
[ECO "B13"]
[WhiteElo "2342"]
[BlackElo "2413"]
[Annotator "ChessBase"]
[PlyCount "78"]
[EventDate "2019.05.26"]
[EventType "tourn"]
[EventCountry "GER"]
[SourceTitle "playchess.com"]
[Source "ChessBase"]
[SourceQuality "1"]
[TimeControl "40/5400+30:1800+30"]

1. e4 {[%emt 0:00:00]} c6 {[%emt 0:00:00]} 2. d4 {[%emt 0:00:00]} d5 {[%emt 0:00:00]} 3. exd5 {[%emt 0:00:00]} cxd5 {[%emt 0:00:00]} 4. Bd3 {[%emt 0:00:00]} Nc6 {[%emt 0:00:04]} 5. c3 {[%emt 0:00:00]} Qc7 {[%emt 0:00:16]} 6. Ne2 {[%emt 0:00:06]} Bg4 {[%emt 0:00:46]} 7. O-O {[%emt 0:00:08]} Nf6 {[%emt 0:03:06]} 8. Qe1 {[%emt 0:00:12]} e6 {[%emt 0:00:45]} 9. f3 {[%emt 0:00:15]} Bh5 {[%emt 0:00:09]} 10. Qh4 {[%emt 0:00:10]} h6 {[%emt 0:00:08]} 11. Qh3 {[%emt 0:00:06]} e5 {[%emt 0:06:50]} 12. Re1 {[%emt 0:02:00]} Be7 {[%emt 0:12:56]} 13. b4 {[%emt 0:05:50]} a6 {[%emt 0:16:50]} 14. Qg3 {[%emt 0:26:08]} O-O-O {[%emt 0:03:46]} 15. Bf5+ {[%emt 0:18:24]} Kb8 {[%emt 0:02:41]} 16. dxe5 {[%emt 0:22:48]} Nxe5 {[%emt 0:00:49]} 17. Qxe5 {[%emt 0:05:29]} Qxe5 {[%emt 0:00:56]} 18. Bf4 {[%emt 0:00:03]} Qxf4 {[%emt 0:16:53]} 19. Nxf4 {[%emt 0:00:06]} Bd6 {[%emt 0:00:40]} 20. Ne2 {[%emt 0:04:56]} Rhe8 {[%emt 0:06:35]} 21. Nd2 {[%emt 0:00:38]} d4 {[%emt 0:04:30]} 22. Nc4 {[%emt 0:05:18]} d3 {[%emt 0:08:19]} 23. Ng3 {[%emt 0:04:21]} Rxe1+ {[%emt 0:02:28]} 24. Rxe1 {[%emt 0:00:04]} Bg6 {[%emt 0:00:43]} 25. Bxg6 {[%emt 0:00:43]} fxg6 {[%emt 0:00:03]} 26. Nxd6 {[%emt 0:01:11]} Rxd6 {[%emt 0:00:03]} 27. Rd1 {[%emt 0:02:22]} Kc7 {[%emt 0:07:47]} 28. Ne4 {[%emt 0:01:00]} Nxe4 {[%emt 0:02:09]} 29. fxe4 {[%emt 0:00:01]} Kc6 {[%emt 0:00:23]} 30. a4 {[%emt 0:00:41]} b5 {[%emt 0:02:08]} 31. a5 {[%emt 0:00:08]} d2 {[%emt 0:00:36]} 32. Kf2 {[%emt 0:00:13]} Rd3 {[%emt 0:00:02]} 33. Ke2 {[%emt 0:00:11]} Rxc3 {[%emt 0:00:01]} 34. Rxd2 {[%emt 0:00:17]} Rc4 {[%emt 0:00:23]} 35. Ke3 {[%emt 0:00:04]} Rxb4 {[%emt 0:00:19]} 36. e5 {[%emt 0:00:06]} Rb3+ {[%emt 0:01:06]} 37. Ke4 {[%emt 0:00:05]} Rb4+ {[%emt 0:00:10]} 38. Ke3 {[%emt 0:00:06]} Rb3+ {[%emt 0:01:24]} 39. Ke4 {[%emt 0:00:04]} Rb4+ {[%emt 0:00:05]} 1/2-1/2